bitfinex/quotes_ETHUSD_20251117
["timestamp","ask_amount","ask_price","bid_price","bid_amount"]
[1763381758457,0.405504,3196.4,3195.5,7.34870689]
[1763381760178,0.6598,3196.8,3195.5,7.34870689]
[1763381760378,0.405504,3196.7,3195.5,7.34870689]
[1763381760585,0.405504,3196.7,3195.5,10.4780488]
[1763381760906,0.405504,3196.7,3195.5,7.34870689]
[1763381761207,0.6679,3197.3,3196.0,7.34870689]
[1763381761357,0.4765,3197.5,3196.2,0.73537069]
[1763381761555,0.1833,3197.7,3196.2,0.73537069]
[1763381761556,0.51559426,3197.4,3196.2,0.73537069]
[1763381761871,0.405504,3197.3,3196.2,0.73537069]
[1763381762268,0.405504,3197.3,3196.3,0.38691231]
[1763381762667,0.1833,3197.7,3196.3,0.38691231]
[1763381762668,0.6598,3197.7,3196.4,7.34870689]
[1763381762874,0.405504,3197.6,3196.4,7.34870689]
[1763381763076,0.882004,3197.6,3196.4,7.34870689]
[1763381763285,0.882004,3197.6,3196.5,0.77356192]
[1763381763499,0.405504,3197.4,3196.5,0.77356192]
[1763381764188,0.405504,3197.8,3196.5,1.90730272]
[1763381764595,0.4765,3197.7,3196.5,1.90730272]
[1763381764888,0.4785,3197.7,3196.5,1.90730272]
[1763381765091,0.4785,3197.7,3196.6,0.92560096]
[1763381766114,0.4785,3197.7,3196.0,0.4775]
[1763381766115,0.405504,3197.6,3196.0,0.001]
[1763381766408,0.405504,3197.4,3196.0,0.001]
[1763381766566,0.405504,3197.2,3196.0,0.001]
[1763381766769,0.03909793,3197.1,3196.0,0.001]
[1763381767088,0.51559793,3197.1,3196.0,0.001]
[1763381768168,0.4765,3197.1,3196.0,0.001]
[1763381768367,0.405504,3197.2,3196.0,0.001]
[1763381768707,0.405504,3197.0,3196.0,0.001]
[1763381769267,0.405504,3197.0,3196.0,1.1347408]
[1763381769702,0.405504,3197.0,3196.0,4.2636121]
[1763381769920,0.405504,3197.0,3196.2,0.42686121]
[1763381770493,0.002,3197.7,3196.2,0.42686121]
[1763381770695,0.405504,3197.3,3196.2,1.1337408]
[1763381771022,0.405504,3197.1,3196.1,0.005]
[1763381771224,0.405504,3196.9,3196.1,0.005]
[1763381771381,0.03909915,3197.0,3196.1,0.005]
[1763381771382,0.4899,3196.2,3196.1,0.005]
[1763381772095,0.9664,3196.2,3196.1,0.005]
[1763381773327,1.371904,3196.2,3196.1,0.005]
[1763381773653,1.371104,3196.2,3196.1,0.005]
[1763381774052,0.405504,3196.1,3195.7,0.001]
[1763381774361,1.086804,3195.8,3195.7,0.001]
[1763381774731,1.563304,3195.8,3195.7,0.001]
[1763381776549,1.85187528,3195.8,3195.7,0.001]
[1763381776955,1.563304,3195.8,3195.7,0.001]
[1763381777450,1.086804,3195.8,3195.7,0.001]
[1763381777655,1.575204,3195.8,3195.7,0.001]
[1763381780827,1.086804,3195.8,3195.7,0.001]
[1763381784224,1.575204,3195.8,3195.7,0.001]
[1763381784958,0.1855,3196.1,3195.7,0.001]
[1763381785138,1.3429045,3197.1,3195.7,0.001]
[1763381785139,0.893904,3196.3,3195.7,0.001]
[1763381785334,0.4751,3195.8,3195.7,0.001]
[1763381785844,0.4884,3196.3,3195.7,0.001]
[1763381786036,0.405504,3196.2,3195.7,0.001]
[1763381786427,0.4884,3196.1,3195.7,0.001]
[1763381787236,0.405504,3196.3,3195.7,0.001]
[1763381788266,0.03910894,3196.2,3195.7,0.001]
[1763381788627,0.52980894,3196.2,3195.7,0.001]
[1763381789030,0.405504,3196.3,3195.7,0.001]
[1763381789558,0.1855,3196.4,3195.7,0.001]
[1763381789734,0.1855,3196.4,3195.7,0.73607069]
[1763381790375,0.6821,3197.1,3195.7,0.73607069]
[1763381790540,0.6821,3197.1,3196.0,1.1337408]
[1763381790740,0.4907,3197.4,3196.3,7.34870689]
[1763381790958,0.4907,3197.4,3196.4,0.73487069]
[1763381791363,0.4927,3197.7,3196.4,0.73487069]
[1763381791531,0.4927,3197.7,3196.7,7.34870689]
[1763381791859,0.002,3197.7,3196.8,0.73487069]
[1763381793161,0.405504,3197.6,3196.8,0.73487069]
[1763381793849,0.4927,3197.7,3196.8,0.73487069]
[1763381795265,0.4927,3197.7,3196.6,1.1337408]
[1763381796662,0.4919,3197.7,3196.6,1.1337408]
[1763381797928,0.4919,3197.7,3196.6,4.26200805]
[1763381798957,0.4919,3197.7,3196.6,1.1337408]
[1763381799336,0.03909181,3197.6,3196.6,1.1337408]
[1763381799538,0.03909181,3197.6,3196.7,1.22976262]
[1763381799731,0.52979181,3197.6,3196.7,1.22976262]
[1763381799953,0.4907,3197.6,3196.7,1.22976262]
[1763381804776,0.0012,3197.7,3196.7,4.35798089]
[1763381804777,0.406704,3197.7,3196.7,4.35798089]
[1763381804951,0.406704,3197.7,3196.8,1.1337408]
[1763381805273,0.406704,3197.7,3196.9,0.54917217]
[1763381805475,0.406704,3197.7,3196.7,1.22976262]
[1763381805973,0.406704,3197.7,3197.0,7.54277391]
[1763381805974,0.0012,3197.7,3197.0,7.54277391]
[1763381806872,0.0012,3197.7,3196.8,0.4907]
[1763381808041,0.0012,3197.7,3196.8,1.6244408]
[1763381808241,0.0012,3197.7,3196.8,4.7525153]
[1763381808443,0.0012,3197.7,3196.9,0.91104851]
[1763381809259,0.0012,3197.7,3197.1,1.1337408]
[1763381809971,0.0012,3197.7,3197.5,7.54277391]
[1763381810470,0.0012,3197.7,3197.6,1.1337408]
[1763381812076,0.0012,3197.7,3197.4,0.12532015]
[1763381812279,0.4784,3197.6,3196.6,4.26197863]
[1763381812576,0.9691,3197.6,3196.9,0.12533978]
[1763381812778,0.9691,3197.6,3196.5,7.54377391]
[1763381812975,0.4907,3197.5,3196.5,7.54377391]
[1763381813154,0.4907,3197.5,3196.6,1.88811819]
[1763381814241,0.4907,3197.5,3196.6,5.01643075]
[1763381814760,0.4907,3197.5,3196.6,1.88811819]
[1763381819691,0.03829426,3197.4,3196.6,0.75437739]
[1763381819879,0.405504,3197.3,3196.5,0.001]
[1763381820085,0.4619,3196.6,3196.5,0.001]
[1763381820286,0.6535,3196.6,3196.5,0.001]
[1763381820474,1.521604,3196.6,3196.5,0.001]
[1763381820893,1.1161,3196.6,3196.5,0.001]
[1763381821276,0.83062665,3197.7,3196.5,0.001]
[1763381821277,0.405504,3197.0,3196.5,0.001]
[1763381821792,0.4626,3197.0,3196.5,0.001]
[1763381823074,0.4626,3197.4,3196.5,0.001]
[1763381823295,0.03909548,3197.3,3196.5,0.001]
[1763381823795,0.6535,3196.6,3196.5,0.001]
[1763381824102,1.059004,3196.6,3196.5,0.001]
[1763381824307,1.521604,3196.6,3196.5,0.001]
[1763381826886,2.47505766,3196.6,3196.5,0.001]
[1763381827070,2.76166747,3196.6,3196.5,0.001]
[1763381827489,2.72256343,3196.6,3196.5,0.001]
[1763381828781,2.76166747,3196.6,3196.5,0.001]
[1763381829282,1.36360577,3196.6,3196.5,0.001]
[1763381829475,1.1161,3196.6,3196.5,0.001]
[1763381830006,1.521604,3196.6,3196.5,0.001]
[1763381830403,0.405504,3196.5,3196.2,0.001]
[1763381830584,0.867404,3196.3,3196.2,0.001]
[1763381831168,1.330004,3196.3,3196.2,0.001]
[1763381832429,1.330004,3196.3,3195.9,0.001]
[1763381832730,0.867404,3196.0,3195.9,0.001]
[1763381832899,1.07217697,3196.0,3195.9,0.001]
[1763381833096,1.49566559,3196.0,3195.9,0.001]
[1763381833812,1.330004,3196.0,3195.9,0.001]
[1763381834315,0.1916,3196.6,3195.9,0.001]
[1763381834316,0.4626,3196.3,3195.9,0.001]
[1763381834516,0.4619,3196.0,3195.9,0.001]
[1763381834694,0.9245,3196.0,3195.9,0.001]
[1763381836156,1.330004,3196.0,3195.9,0.001]
[1763381842837,1.329204,3196.0,3195.9,0.001]
[1763381843498,0.866604,3196.0,3195.9,0.001]
[1763381844321,1.347304,3196.0,3195.9,0.001]
[1763381845648,0.1916,3196.6,3195.9,0.001]
[1763381845948,0.886204,3196.5,3195.9,0.001]
[1763381846108,0.4807,3196.4,3195.9,0.001]
[1763381846308,0.405504,3196.3,3195.9,0.001]
[1763381846708,0.4731,3196.0,3195.9,0.001]
[1763381848247,0.4731,3196.0,3194.9,1.1337408]
[1763381848545,0.03911261,3195.9,3195.0,0.43481908]
[1763381848720,0.03911261,3195.9,3194.8,1.21816469]
[1763381848921,0.405504,3196.0,3194.8,1.1337408]
[1763381849336,0.1916,3196.6,3194.8,1.1337408]
[1763381849337,0.405504,3196.5,3194.8,1.1337408]
[1763381849519,0.405504,3196.2,3194.8,4.263811]
[1763381849718,0.405504,3196.2,3194.9,1.4936767]
[1763381850253,0.2886853,3196.4,3195.2,7.54277391]
[1763381850443,0.6984,3196.9,3195.7,7.54277391]
[1763381850640,0.28875701,3196.8,3195.8,0.75427739]
[1763381850840,0.203,3196.9,3195.8,0.75427739]
[1763381851227,0.405504,3196.8,3195.8,0.75427739]
[1763381851386,0.005,3196.9,3195.8,0.75427739]
[1763381851688,0.005,3196.9,3195.9,0.82970513]
[1763381852033,0.24210037,3196.9,3195.9,0.82970513]
[1763381852236,0.4954,3196.8,3195.9,0.82970513]
[1763381852466,0.03910282,3196.7,3195.4,4.2632245]
[1763381852668,0.405504,3196.8,3195.4,4.2632245]
[1763381852968,0.405504,3196.8,3195.5,0.73928116]
[1763381853673,0.005,3196.9,3195.5,0.73928116]
[1763381854066,0.005,3196.9,3195.7,10.67190037]
[1763381854273,0.203,3196.9,3195.7,10.67190037]
[1763381855041,0.203,3196.9,3195.8,0.001]
[1763381855379,0.205,3196.9,3195.9,1.06729004]
[1763381855884,0.007,3196.9,3195.9,1.06729004]
[1763381856040,0.007,3196.9,3195.9,2.20103084]
[1763381856246,0.205,3196.9,3195.9,2.20103084]
[1763381856468,0.007,3196.9,3196.0,0.22020308]
[1763381856882,0.007,3196.9,3196.1,1.1337408]
[1763381862070,0.205,3196.9,3196.1,1.1337408]
[1763381862463,0.007,3196.9,3196.1,1.1337408]
[1763381863192,0.007,3196.9,3196.1,4.26255055]
[1763381863398,0.007,3196.9,3196.2,1.18268974]
[1763381864264,0.007,3196.9,3196.4,7.3441438]
[1763381866109,0.2042,3196.9,3196.2,1.18268974]
[1763381866461,0.6996,3196.9,3196.2,1.18268974]
[1763381866683,0.0391016,3196.8,3196.0,0.22020308]
[1763381866882,0.4954,3196.8,3196.0,0.22020308]
[1763381872940,0.4954,3196.8,3196.4,5.88568339]
[1763381873825,0.4572,3196.5,3196.4,5.88568339]
[1763381874860,0.4954,3196.8,3196.4,5.88568339]
[1763381876846,0.4572,3196.5,3196.4,5.88568339]
[1763381877036,0.4954,3196.8,3196.4,5.88568339]
[1763381879645,0.4954,3196.8,3196.4,5.88568339]
[1763381880312,0.4812,3196.5,3196.4,5.88568339]
[1763381880845,0.4954,3196.8,3196.4,5.88568339]
[1763381881049,0.4812,3196.5,3196.4,5.88568339]
[1763381881212,0.4812,3196.5,3196.0,5.88568339]
[1763381881563,0.4812,3195.9,3195.8,0.001]
[1763381881848,1.17626532,3195.9,3195.8,0.001]
[1763381882033,1.66856532,3195.9,3195.8,0.001]
[1763381882239,1.54586053,3195.9,3195.8,0.001]
[1763381882561,1.14035653,3195.9,3195.8,0.001]
[1763381882725,0.9735,3195.9,3195.8,0.001]
[1763381883746,0.4923,3196.5,3195.8,0.001]
[1763381883949,0.405504,3196.4,3196.1,5.88568339]
[1763381884151,1.15775927,3196.8,3196.3,5.88568339]
[1763381884347,0.405504,3196.7,3196.3,5.88568339]
[1763381884545,0.4923,3196.7,3196.3,5.88568339]
[1763381884954,0.4812,3196.4,3195.8,0.001]
[1763381885151,0.2042,3196.9,3195.8,0.001]
[1763381885152,0.2042,3196.9,3195.8,0.73567451]
[1763381885315,0.405504,3196.8,3195.8,0.73567451]
[1763381885722,0.6965,3196.9,3195.8,0.73567451]
[1763381885945,0.6965,3196.9,3195.8,1.86941531]
[1763381886131,0.6965,3196.9,3195.9,0.49985819]
[1763381886331,0.4923,3196.8,3195.9,0.49985819]
[1763381886623,0.0062,3196.9,3196.1,1.1337408]
[1763381888853,0.0054,3196.9,3196.1,1.1337408]
[1763381889044,0.0054,3196.9,3196.2,0.84794859]
[1763381889245,0.2047,3196.9,3196.2,0.84794859]
[1763381889430,0.0054,3196.9,3196.0,4.26264436]
[1763381889830,0.0054,3196.9,3196.3,7.34574507]
[1763381890433,0.0054,3196.9,3196.4,1.1337408]
[1763381891619,0.0054,3196.9,3196.4,4.26225644]
[1763381891819,0.0054,3196.9,3196.8,1.1337408]
[1763381893035,0.0054,3196.9,3196.8,4.26186892]
[1763381893638,0.002,3197.3,3196.8,7.38999704]
[1763381893838,0.002,3197.3,3197.2,8.47948587]
[1763381896364,0.002,3197.3,3197.2,11.60722263]
[1763381896536,0.002,3197.3,3197.2,13.08072708]
[1763381897531,0.007,3197.9,3197.3,1.1337408]
[1763381897738,0.007,3197.9,3197.8,8.47948587]
[1763381898839,0.007,3197.9,3197.8,1.1337408]
[1763381899659,0.007,3197.9,3197.8,5.1088393]
[1763381899854,0.007,3197.9,3197.8,1.98168939]
[1763381900047,0.007,3197.9,3197.8,5.1088393]
[1763381900859,0.007,3197.9,3197.8,1.98168939]
[1763381903637,0.007,3197.9,3197.8,5.1088393]
[1763381904272,0.002,3198.3,3197.9,1.1337408]
[1763381904466,0.002,3198.3,3197.9,2.37919924]
[1763381906666,0.002,3198.3,3198.0,4.26069514]
[1763381908196,0.002,3198.3,3198.0,1.1337408]
[1763381908392,0.4525,3198.1,3197.7,7.34574507]
[1763381908593,0.4505,3198.0,3197.8,1.1337408]
[1763381909761,0.456,3198.1,3197.8,1.1337408]
[1763381909762,1.0944,3197.9,3197.8,0.001]
[1763381911996,1.0936,3197.9,3197.8,0.001]
[1763381913270,1.499104,3197.9,3197.8,0.001]
[1763381923016,1.0936,3197.9,3197.8,0.001]
[1763381923220,1.499104,3197.9,3197.8,0.001]
[1763381923634,0.9045,3197.9,3197.8,0.001]
[1763381924518,0.407504,3198.1,3197.8,0.001]
[1763381924720,0.861504,3198.1,3197.8,0.001]
[1763381925031,0.002,3198.1,3197.8,0.001]
[1763381925718,0.4505,3197.9,3197.8,0.001]
[1763381926918,1.34909215,3197.9,3197.8,0.001]
[1763381927241,1.312004,3197.9,3197.8,0.001]
[1763381927388,0.858004,3197.9,3197.8,0.001]
[1763381927589,1.312004,3197.9,3197.8,0.001]
[1763381928341,0.9065,3197.9,3197.8,0.001]
[1763381929409,1.312004,3197.9,3197.8,0.001]
[1763381931810,1.35109215,3197.9,3197.8,0.001]
[1763381932901,1.63855745,3197.9,3197.8,0.001]
[1763381933102,1.8026132,3197.9,3197.8,0.001]
[1763381934941,1.8018132,3197.9,3197.8,0.001]
[1763381936440,1.76272505,3197.9,3197.8,0.001]
[1763381939737,2.46580122,3197.9,3197.8,0.001]
[1763381939943,1.8018132,3197.9,3197.8,0.001]
[1763381940346,2.46595056,3197.9,3197.8,0.001]
[1763381940727,3.59969136,3197.9,3197.8,0.001]
[1763381942328,2.42686241,3197.9,3197.8,0.001]
[1763381943447,0.7864653,3197.9,3197.8,0.001]
[1763381943613,0.0012,3197.9,3197.8,0.001]
[1763381954839,0.002,3198.1,3198.0,8.67464322]
[1763381955835,0.002,3198.3,3198.1,1.1337408]
[1763381957139,0.002,3198.3,3198.2,3.1267588]
[1763381957344,0.002,3198.3,3198.2,4.61958492]
[1763381957541,0.002,3198.3,3198.2,1.49282612]
[1763381957998,0.0012,3198.3,3198.2,1.49282612]
[1763381959501,0.0012,3198.3,3198.2,5.75332572]
[1763381964904,0.002,3198.4,3198.3,1.1337408]
[1763381965100,0.002,3198.4,3198.3,2.59455861]
[1763381965602,0.002,3199.0,3198.3,2.59455861]
[1763381965807,0.002,3199.0,3198.7,6.86183442]
[1763381966179,0.002,3199.4,3198.7,6.86183442]
[1763381966382,0.002,3199.4,3199.0,5.72809362]
[1763381966772,0.002,3199.4,3199.1,7.53028733]
[1763381969012,0.002,3199.4,3199.1,10.65616648]
[1763381969316,0.002,3199.4,3199.2,1.1337408]
[1763381969476,0.005,3199.9,3199.2,1.1337408]
[1763381969678,0.005,3199.9,3199.1,16.90792478]
[1763381969679,0.005,3199.9,3199.7,8.66402813]
[1763381970776,0.005,3199.9,3199.7,11.78932112]
[1763381970981,0.005,3199.9,3199.7,11.91453378]
[1763381976212,0.002,3200.5,3199.8,1.1337408]
[1763381976395,0.002,3200.5,3199.9,1.30482746]
[1763381977004,0.002,3200.5,3200.0,0.1908]
[1763381977204,0.002,3200.5,3200.1,1.1337408]
[1763381977401,0.4602,3200.4,3200.0,0.1908]
[1763381978496,0.4602,3200.4,3200.1,1.1337408]
[1763381978697,0.4602,3200.4,3200.1,1.70917666]
[1763381978898,0.4602,3200.4,3200.1,9.03350483]
[1763381979311,0.4602,3200.4,3200.1,12.15840717]
[1763381979510,0.4602,3200.4,3200.1,9.03350483]
[1763381979747,0.4602,3200.4,3200.1,9.49370483]
[1763381981041,0.0012,3200.2,3200.1,9.49370483]
[1763381981940,0.0012,3200.2,3200.1,8.35996403]
[1763381982834,0.9191,3200.2,3200.1,7.89976403]
[1763381983024,0.405504,3200.1,3199.3,7.32432817]
[1763381983225,0.4577,3199.8,3199.6,0.4602]
[1763381983542,0.4577,3199.8,3199.4,1.1337408]
[1763381983839,0.4577,3199.4,3199.3,7.32432817]
[1763381984241,0.9179,3199.4,3199.3,8.84450899]
[1763381985016,0.9179,3199.4,3199.0,0.865704]
[1763381985215,0.4577,3199.1,3199.0,1.1337408]
[1763381985445,0.4602,3199.6,3199.0,1.1337408]
[1763381985634,0.4602,3199.6,3199.3,7.32432817]
[1763381986143,0.4577,3199.4,3199.3,7.32432817]
[1763381986517,0.9179,3199.4,3199.3,7.32432817]
[1763381986717,0.4577,3199.4,3199.3,7.32432817]
[1763381987119,0.4577,3199.4,3199.3,7.70808805]
[1763381987931,0.4577,3199.4,3199.3,7.32432817]
[1763381989036,0.651,3199.7,3199.3,7.32432817]
[1763381989655,0.4602,3199.6,3199.3,7.32432817]
[1763381990520,0.1908,3199.7,3199.3,7.32432817]
[1763381990724,0.651,3199.7,3199.3,7.32432817]
[1763381991116,0.4602,3199.6,3199.3,7.98950472]
[1763381991345,0.1908,3199.7,3199.3,7.98950472]
[1763381991545,0.651,3199.7,3199.3,7.98950472]
[1763381992349,0.1908,3199.7,3199.3,11.11511139]
[1763381992516,0.651,3199.7,3199.4,1.47010866]
[1763381992933,0.4577,3199.5,3199.4,1.66090866]
[1763381993134,0.4577,3199.5,3199.4,1.47010866]
[1763381993330,0.9179,3199.5,3199.3,7.32432817]
[1763381993536,0.4577,3199.4,3199.3,7.32432817]
[1763381993815,0.9179,3199.4,3199.0,1.1337408]
[1763381994128,0.4602,3199.4,3199.0,1.5939408]
[1763381994451,0.4577,3199.1,3199.0,1.5939408]
[1763381994626,0.4602,3199.3,3199.0,1.5939408]
[1763381995024,0.4602,3199.3,3199.0,1.5949408]
[1763381995222,0.4602,3199.3,3199.0,4.72090744]
[1763381995421,0.1908,3199.7,3199.2,7.32432817]
[1763381995851,0.4602,3199.6,3199.2,7.32432817]
[1763381997657,0.4709,3199.3,3199.2,8.45806897]
[1763381998964,0.4602,3199.6,3199.2,8.45806897]
[1763381999258,0.4602,3199.6,3199.2,9.70980215]
[1763382000755,0.4602,3199.6,3199.2,12.8355577]
[1763382000961,0.4602,3199.6,3199.2,13.2957577]
[1763382001264,0.4602,3199.6,3199.2,10.17000215]
[1763382001767,0.4709,3199.3,3199.2,9.70980215]
[1763382002064,0.4602,3199.6,3199.2,9.70980215]
[1763382002578,0.4602,3199.6,3199.3,1.01700021]
[1763382002935,0.4709,3199.4,3199.3,1.01700021]
[1763382003361,0.938,3199.4,3199.3,1.01700021]
[1763382003751,0.1908,3199.7,3199.3,1.01700021]
[1763382003956,0.6571,3199.7,3199.3,1.01700021]
[1763382004278,0.6571,3199.7,3199.4,0.94750692]
[1763382004445,0.0012,3200.2,3199.6,7.32432817]
[1763382004631,0.4709,3199.7,3199.6,7.32432817]
[1763382004831,0.6631,3199.7,3199.6,7.32432817]
[1763382005076,1.1302,3199.7,3199.6,7.32432817]
[1763382005743,0.4709,3199.7,3199.6,8.15151168]
[1763382005943,0.0012,3200.2,3199.6,8.15151168]
[1763382006147,0.4683,3200.2,3199.6,8.15151168]
[1763382006359,0.4683,3200.2,3200.0,7.32432817]
[1763382006538,0.4683,3200.2,3200.1,0.73243282]
[1763382006734,0.4683,3200.2,3200.1,6.60310837]
[1763382007060,0.9392,3200.2,3200.1,6.60310837]
[1763382007261,0.4721,3200.2,3200.1,6.60310837]
[1763382007474,0.9392,3200.2,3200.1,6.60310837]
[1763382007671,0.405504,3200.1,3200.0,5.87067555]
[1763382007850,1.343504,3200.1,3200.0,5.87067555]
[1763382008257,1.343504,3200.1,3199.4,5.87067555]
[1763382008571,0.0012,3200.2,3199.1,1.1337408]
[1763382008572,0.6631,3199.5,3199.1,1.1337408]
[1763382008765,0.1922,3199.5,3199.2,0.70054164]
[1763382008967,0.4671,3199.4,3199.0,0.001]
[1763382009190,0.1922,3199.5,3199.0,0.001]
[1763382009577,0.1922,3199.5,3199.2,7.33122593]
[1763382009780,0.1922,3199.5,3199.2,7.76661794]
[1763382009781,0.6593,3199.5,3199.2,7.76661794]
[1763382010771,0.4709,3199.3,3199.2,7.76661794]
[1763382010961,0.4709,3199.3,3199.2,7.33122593]
[1763382011162,0.938,3199.3,3199.2,7.33122593]
[1763382011362,0.4709,3199.3,3199.2,7.33122593]
[1763382011776,0.938,3199.3,3199.2,7.33122593]
[1763382011978,0.938,3199.3,3199.0,0.001]
[1763382012173,0.4709,3199.1,3199.0,0.001]
[1763382012560,0.938,3199.1,3199.0,0.001]
[1763382016596,0.405504,3199.4,3199.0,0.001]
[1763382016908,0.4709,3199.1,3199.0,0.001]
[1763382017279,0.938,3199.1,3199.0,0.001]
[1763382017578,0.9054,3199.1,3199.0,0.001]
[1763382018086,0.4674,3199.1,3199.0,0.001]
[1763382018398,0.1922,3199.5,3199.0,0.001]
[1763382018399,0.1922,3199.5,3199.0,1.10622259]
[1763382018601,0.1922,3199.5,3199.2,7.33122593]
[1763382019198,0.407504,3199.7,3199.2,7.33122593]
[1763382019503,0.4674,3199.3,3199.2,7.33122593]
[1763382019676,0.4674,3199.3,3199.0,0.001]
[1763382019866,0.4904,3199.2,3199.0,0.001]
[1763382020066,0.407504,3199.7,3199.0,0.001]
[1763382020271,0.405504,3199.5,3199.0,0.001]
[1763382020702,0.4674,3199.1,3199.0,0.001]
[1763382021078,0.9578,3199.1,3199.0,0.001]
[1763382021278,0.405504,3199.5,3199.0,0.001]
[1763382021531,0.897904,3199.7,3199.0,0.001]
[1763382021671,0.897904,3199.7,3199.0,0.73422259]
[1763382022002,0.405504,3199.5,3199.0,0.73422259]
[1763382022368,0.897904,3199.7,3199.0,0.73422259]
[1763382023190,0.4904,3199.6,3199.0,0.73422259]
[1763382023388,0.4904,3199.6,3199.1,0.80654485]
[1763382027015,0.0012,3199.7,3199.3,7.33122593]
[1763382027608,0.4878,3199.7,3199.3,7.33122593]
[1763382028515,0.4872,3199.4,3199.3,7.33122593]
[1763382029086,0.0012,3199.7,3199.3,7.33122593]
[1763382029293,0.4866,3199.6,3199.4,0.73312259]
[1763382029817,0.4872,3199.5,3199.4,0.73312259]
[1763382030179,0.9738,3199.5,3199.4,0.73312259]
[1763382030808,0.9738,3199.5,3199.4,6.60661506]
[1763382031178,0.4872,3199.5,3199.4,6.60661506]
[1763382032839,0.4872,3199.5,3199.4,0.73312259]
[1763382032996,0.4872,3199.5,3199.1,8.26906]
[1763382033524,0.9738,3199.5,3199.1,8.26906]
[1763382033690,0.4872,3199.2,3199.1,8.26906]
[1763382034144,0.4866,3199.4,3199.1,8.26906]
[1763382034808,0.4866,3199.4,3199.0,0.001]
[1763382034809,0.4872,3199.2,3199.0,0.001]
[1763382035023,0.9738,3199.1,3199.0,0.001]
[1763382038236,0.4872,3199.1,3199.0,0.001]
[1763382038400,0.405504,3199.6,3199.0,0.001]
[1763382038605,0.4872,3199.1,3199.0,0.001]
[1763382041875,0.4866,3199.3,3199.0,0.001]
[1763382044039,0.4872,3199.1,3199.0,0.001]
[1763382044439,0.9738,3199.1,3199.0,0.001]
[1763382044844,1.379304,3199.1,3199.0,0.001]
[1763382045557,1.379304,3199.1,3198.6,0.001]
[1763382045558,0.405504,3199.0,3198.6,0.001]
[1763382045750,0.1829,3198.7,3198.6,0.001]
[1763382045928,0.6701,3198.7,3198.6,0.001]
[1763382046263,1.1567,3198.7,3198.6,0.001]
[1763382046464,1.075604,3198.7,3198.6,0.001]
[1763382046831,1.562204,3198.7,3198.6,0.001]
[1763382047235,0.405504,3198.7,3198.6,0.001]
[1763382047541,1.379304,3198.7,3198.6,0.001]
[1763382050744,1.378504,3198.7,3198.6,0.001]
[1763382051583,1.41758237,3198.7,3198.6,0.001]
[1763382051731,1.57763061,3198.7,3198.6,0.001]
[1763382053674,1.53855224,3198.7,3198.6,0.001]
[1763382053833,1.52102489,3198.7,3198.6,0.001]
[1763382057636,1.56010326,3198.7,3198.6,0.001]
[1763382058881,1.52102489,3198.7,3198.6,0.001]
[1763382059345,1.36097665,3198.7,3198.6,0.001]
[1763382060949,1.40005502,3198.7,3198.6,0.001]
[1763382062408,1.36097665,3198.7,3198.6,0.001]
[1763382063083,1.35427665,3198.7,3198.6,0.001]
[1763382063619,0.38917665,3198.7,3198.6,6.10686466]
[1763382063978,0.84967665,3198.7,3198.6,0.001]
[1763382064179,0.38917665,3198.7,3198.6,0.001]
[1763382064389,0.84967665,3198.7,3198.6,0.001]
[1763382065022,1.32957665,3198.7,3198.6,0.001]
[1763382065221,0.84967665,3198.7,3198.6,0.001]
[1763382065590,1.32957665,3198.7,3198.6,0.001]
[1763382065933,0.9424,3198.7,3198.6,0.001]
[1763382066226,0.407504,3198.7,3198.6,0.001]
[1763382067926,0.868004,3198.7,3198.6,0.001]
[1763382068595,1.347904,3198.7,3198.6,0.001]
[1763382068926,0.868004,3198.7,3198.6,0.001]
[1763382069574,0.4625,3198.7,3198.6,0.001]
[1763382069707,0.868004,3198.7,3198.6,0.001]
[1763382069909,0.407504,3198.7,3198.6,0.747]
[1763382070332,0.407504,3198.7,3198.6,0.374]
[1763382070753,0.002,3198.7,3198.6,0.374]
[1763382071047,0.002,3198.7,3198.6,0.747]
[1763382071443,0.002,3198.7,3198.6,1.13445495]
[1763382071802,0.002,3198.7,3198.6,0.747]
[1763382073352,0.0012,3198.7,3198.6,0.747]
[1763382074336,0.0012,3198.7,3198.6,3.87336778]
[1763382074959,0.0012,3198.7,3198.6,0.747]
[1763382075445,0.0012,3198.7,3198.6,3.99864201]
[1763382075649,0.0012,3198.7,3198.6,5.95837476]
[1763382080666,0.0012,3198.7,3198.6,2.83200698]
[1763382080867,0.0012,3198.7,3198.6,2.00601503]
[1763382081061,0.0012,3198.7,3198.6,5.13238281]
[1763382084906,0.0012,3198.7,3198.6,10.85915236]
[1763382088798,0.002,3199.4,3199.0,0.373]
[1763382089000,0.002,3199.4,3199.3,7.23351035]
[1763382089199,0.002,3199.4,3199.3,7.95686139]
[1763382089508,0.002,3199.4,3199.3,8.15256139]
[1763382089710,0.4568,3199.4,3199.3,7.77956139]
[1763382089908,0.4568,3199.4,3199.3,7.58386139]
[1763382091228,0.002,3199.4,3199.3,7.58386139]
[1763382093921,0.4568,3199.4,3199.3,7.58386139]
[1763382095944,0.9226,3199.4,3199.3,1.1337408]
[1763382096130,0.9218,3199.4,3199.3,1.1337408]
[1763382097647,0.405504,3199.3,3198.9,5.72676955]
[1763382097871,0.405504,3199.3,3198.6,0.001]
[1763382097872,0.405504,3198.9,3198.6,0.001]
[1763382098148,1.056004,3198.7,3198.6,0.001]
[1763382098646,1.521804,3198.7,3198.6,0.001]
[1763382099364,0.405504,3198.6,3198.2,0.001]
[1763382099539,1.36518359,3198.6,3198.2,0.001]
[1763382102821,1.36518359,3198.6,3197.9,0.001]